bitfinex/quotes_BTCUSD_20250616
["timestamp","ask_amount","ask_price","bid_price","bid_amount"]
[1750113291645,0.04915886,108650.0,108640.0,0.37426735]
[1750113292111,0.04095525,108650.0,108640.0,0.37626735]
[1750113292590,0.03175156,108650.0,108640.0,0.37626735]
[1750113292802,0.05015886,108650.0,108640.0,0.37626735]
[1750113293829,0.03175156,108650.0,108640.0,0.37626735]
[1750113294363,0.00414159,108650.0,108640.0,0.44127877]
[1750113294578,0.00414159,108650.0,108640.0,0.61759877]
[1750113295428,0.00414159,108650.0,108640.0,0.71384053]
[1750113297027,0.00414159,108650.0,108640.0,0.73004053]
[1750113297266,0.00414159,108650.0,108640.0,0.50346911]
[1750113297504,0.00414159,108650.0,108640.0,0.73004053]
[1750113297980,0.00414159,108650.0,108640.0,1.3311528]
[1750113298220,0.00414159,108650.0,108640.0,1.13222838]
[1750113298882,0.00314159,108650.0,108640.0,1.17578838]
[1750113299100,0.00214159,108650.0,108640.0,1.17478838]
[1750113299411,0.00414159,108650.0,108640.0,1.17703913]
[1750113299621,0.00414159,108650.0,108640.0,1.13119913]
[1750113299827,0.00514159,108650.0,108640.0,1.13419913]
[1750113301121,0.00514159,108650.0,108640.0,0.93881828]
[1750113301347,0.00514159,108650.0,108640.0,0.87952053]
[1750113301556,0.00514159,108650.0,108640.0,1.05606053]
[1750113301780,0.00514159,108650.0,108640.0,1.07226053]
[1750113302657,0.00514159,108650.0,108640.0,0.91162053]
[1750113302876,0.00514159,108650.0,108640.0,1.07218053]
[1750113304248,0.00514159,108650.0,108640.0,1.05598053]
[1750113304460,0.00514159,108650.0,108640.0,1.05582053]
[1750113304672,0.00514159,108650.0,108640.0,1.03992053]
[1750113305297,0.00514159,108650.0,108640.0,1.05502053]
[1750113306993,0.00514159,108650.0,108640.0,0.89462053]
[1750113307194,0.00514159,108650.0,108640.0,1.05490053]
[1750113309382,0.0327519,108650.0,108640.0,0.28533601]
[1750113309601,0.05464821,108650.0,108640.0,0.37686718]
[1750113309823,0.05464812,108650.0,108640.0,0.37686718]
[1750113310269,0.04544486,108650.0,108640.0,0.6034386]
[1750113310556,0.0546483,108650.0,108640.0,0.37686718]
[1750113311030,0.0546483,108650.0,108640.0,0.21670718]
[1750113311270,0.0546483,108650.0,108640.0,0.37682718]
[1750113311500,0.04544477,108650.0,108640.0,0.37682718]
[1750113311993,0.04544469,108650.0,108640.0,0.37682718]
[1750113312225,0.04544469,108650.0,108640.0,0.6033986]
[1750113312456,0.05464796,108650.0,108640.0,0.37682718]
[1750113313388,0.05464787,108650.0,108640.0,0.37682718]
[1750113314321,0.05464787,108650.0,108640.0,0.21670718]
[1750113314536,0.07305492,108650.0,108640.0,0.37666718]
[1750113314782,0.07305483,108650.0,108640.0,0.37666718]
[1750113315005,0.06385131,108650.0,108640.0,0.37666718]
[1750113315497,0.073055,108650.0,108640.0,0.37678718]
[1750113315751,0.07305492,108650.0,108640.0,0.37678718]
[1750113315969,0.08225861,108650.0,108640.0,0.37678718]
[1750113316173,0.06385131,108650.0,108640.0,0.37678718]
[1750113316388,0.07305492,108650.0,108640.0,0.37678718]
[1750113316602,0.08225861,108650.0,108640.0,0.37678718]
[1750113317359,0.08225929,108650.0,108640.0,0.37678718]
[1750113317777,0.51458784,108650.0,108640.0,0.005]
[1750113317988,0.28801642,108650.0,108640.0,0.005]
[1750113318196,0.51458784,108650.0,108640.0,0.005]
[1750113318610,0.54272291,108650.0,108640.0,0.005]
[1750113319971,0.54272291,108650.0,108640.0,0.18909425]
[1750113319972,0.49343303,108650.0,108640.0,0.18909425]
[1750113320193,0.49343303,108650.0,108640.0,0.2075035]
[1750113320635,0.07358018,108650.0,108640.0,0.21670778]
[1750113320882,0.27606504,108650.0,108640.0,0.21670778]
[1750113321123,0.08278337,108650.0,108640.0,0.22591189]
[1750113321586,0.27606446,108650.0,108640.0,0.2075035]
[1750113321764,0.27606446,108650.0,108640.0,0.21670795]
[1750113322020,0.26686119,108650.0,108640.0,0.2075035]
[1750113322246,0.35503926,108650.0,108640.0,0.20750358]
[1750113322473,0.35503926,108650.0,108640.0,0.22591257]
[1750113322474,0.26686119,108650.0,108640.0,0.22591257]
[1750113323070,0.26686119,108650.0,108640.0,0.23511694]
[1750113323310,0.26686119,108650.0,108640.0,0.22591257]
[1750113323532,0.26686119,108650.0,108640.0,0.21670812]
[1750113323746,0.49343261,108650.0,108640.0,0.21670812]
[1750113324117,0.26686119,108650.0,108640.0,0.22591257]
[1750113324322,0.49343261,108650.0,108640.0,0.22591257]
[1750113324525,0.49343261,108650.0,108640.0,0.21670812]
[1750113324732,0.57235225,108650.0,108640.0,0.21670812]
[1750113324935,0.49343261,108650.0,108640.0,0.21670812]
[1750113325248,0.26686119,108650.0,108640.0,0.21670812]
[1750113326029,0.25765775,108650.0,108640.0,0.20750358]
[1750113328409,0.25765775,108650.0,108640.0,0.19829896]
[1750113329896,0.34460319,108650.0,108640.0,0.005]
[1750113330870,0.57117461,108650.0,108640.0,0.005]
[1750113331781,0.34460319,108650.0,108640.0,0.005]
[1750113332000,0.57117461,108650.0,108640.0,0.005]
[1750113333986,6.05741637,108650.0,108640.0,0.005]
[1750113334409,6.07944362,108650.0,108640.0,0.005]
[1750113334833,6.07944362,108650.0,108640.0,0.002]
[1750113334834,6.07844362,108650.0,108640.0,0.002]
[1750113335035,0.05111001,108630.0,108620.0,0.22095162]
[1750113335363,0.24442668,108630.0,108620.0,0.22095162]
[1750113336618,0.25453941,108630.0,108620.0,0.20554009]
[1750113336824,0.25453941,108630.0,108620.0,0.20554043]
[1750113337071,0.24533428,108630.0,108620.0,0.20554052]
[1750113337246,0.23612889,108630.0,108620.0,0.19633447]
[1750113337493,0.30173033,108630.0,108620.0,0.2055407]
[1750113337765,0.52009628,108630.0,108620.0,0.006]
[1750113339830,0.52009628,108630.0,108620.0,0.19012815]
[1750113340062,0.79449484,108630.0,108620.0,0.006]
[1750113340292,1.11730802,108630.0,108620.0,0.006]
[1750113340524,1.16198802,108630.0,108620.0,0.006]
[1750113340979,0.9354166,108630.0,108620.0,0.006]
[1750113341185,1.03156582,108630.0,108620.0,0.006]
[1750113341830,0.8049944,108630.0,108620.0,0.006]
[1750113342055,1.29468617,108630.0,108620.0,0.006]
[1750113342306,1.32235317,108630.0,108620.0,0.006]
[1750113342520,6.37235317,108630.0,108620.0,0.006]
[1750113343158,6.53099317,108630.0,108620.0,0.003]
[1750113343603,6.53299317,108630.0,108620.0,0.001]
[1750113344019,6.53399317,108630.0,108620.0,0.002]
[1750113344463,6.53299317,108630.0,108620.0,0.001]
[1750113344676,6.53599317,108630.0,108620.0,0.002]
[1750113345322,6.53299317,108630.0,108620.0,0.001]
[1750113345658,6.53599317,108630.0,108620.0,0.001]
[1750113345871,6.58599317,108630.0,108620.0,0.001]
[1750113346296,6.33167317,108630.0,108620.0,0.001]
[1750113346511,6.53535317,108630.0,108620.0,0.001]
[1750113346955,6.53539317,108630.0,108620.0,0.001]
[1750113347406,6.33167317,108630.0,108620.0,0.001]
[1750113347613,6.53535317,108630.0,108620.0,0.001]
[1750113350182,0.58889986,108610.0,108600.0,0.1]
[1750113350390,6.42486878,108610.0,108600.0,0.1]
[1750113351499,6.42491594,108610.0,108600.0,0.101]
[1750113351726,6.42591594,108610.0,108600.0,0.101]
[1750113351978,6.42791594,108610.0,108600.0,0.101]
[1750113352177,6.20134452,108610.0,108600.0,0.101]
[1750113353049,5.9747731,108610.0,108600.0,0.101]
[1750113353261,6.20134452,108610.0,108600.0,0.101]
[1750113353469,6.22901652,108610.0,108600.0,0.101]
[1750113353707,6.0024451,108610.0,108600.0,0.101]
[1750113353934,6.22901652,108610.0,108600.0,0.101]
[1750113354377,6.45558794,108610.0,108600.0,0.101]
[1750113354603,6.22901652,108610.0,108600.0,0.101]
[1750113356178,6.45558794,108610.0,108600.0,0.101]
[1750113356398,6.47751365,108610.0,108600.0,0.101]
[1750113357040,6.45558794,108610.0,108600.0,0.101]
[1750113357701,6.47751404,108610.0,108600.0,0.101]
[1750113357972,6.31823404,108610.0,108600.0,0.101]
[1750113358183,6.29498262,108610.0,108600.0,0.101]
[1750113358408,6.29498226,108610.0,108600.0,0.101]
[1750113358625,6.27305652,108610.0,108600.0,0.101]
[1750113359260,6.29498512,108610.0,108600.0,0.101]
[1750113359673,6.29498895,108610.0,108600.0,0.101]
[1750113359854,6.52156037,108610.0,108600.0,0.101]
[1750113360314,6.49962794,108610.0,108600.0,0.101]
[1750113360569,6.52156031,108610.0,108600.0,0.101]
[1750113361165,6.29498889,108610.0,108600.0,0.101]
[1750113361467,6.52156031,108610.0,108600.0,0.101]
[1750113362113,6.49962794,108610.0,108600.0,0.101]
[1750113362322,6.52157111,108610.0,108600.0,0.101]
[1750113365678,6.31825111,108610.0,108600.0,0.101]
[1750113365892,6.31825111,108610.0,108580.0,0.01]
[1750113365893,0.06415815,108590.0,108580.0,0.01]
[1750113366107,6.49174991,108590.0,108580.0,0.01]
[1750113366325,6.51369308,108590.0,108580.0,0.01]
[1750113366551,6.31480066,108590.0,108580.0,0.01]
[1750113366765,6.34226453,108590.0,108580.0,0.01]
[1750113366981,6.54137208,108590.0,108580.0,0.01]
[1750113367185,6.48654629,108590.0,108580.0,0.01]
[1750113367607,6.48954629,108590.0,108580.0,0.01]
[1750113368048,6.28170629,108590.0,108580.0,0.01]
[1750113368477,6.49266629,108590.0,108580.0,0.01]
[1750113368936,6.49262629,108590.0,108580.0,0.01]
[1750113369399,6.238591,108590.0,108580.0,0.01]
[1750113369611,6.49262629,108590.0,108580.0,0.01]
[1750113370561,6.29388711,108590.0,108580.0,0.01]
[1750113370764,6.52045853,108590.0,108580.0,0.01]
[1750113372562,6.29388711,108590.0,108580.0,0.01]
[1750113372847,6.52045853,108590.0,108580.0,0.01]
[1750113373057,6.78358769,108590.0,108580.0,0.01]
[1750113373261,6.38044485,108590.0,108580.0,0.01]
[1750113373678,6.60701627,108590.0,108580.0,0.01]
[1750113374755,6.57097853,108590.0,108580.0,0.01]
[1750113374977,6.60753627,108590.0,108580.0,0.01]
[1750113375198,6.57097853,108590.0,108580.0,0.01]
[1750113375887,6.5800724,108590.0,108580.0,0.01]
[1750113376773,6.60755515,108590.0,108580.0,0.01]
[1750113377186,6.60723515,108590.0,108580.0,0.01]
[1750113377605,6.52067741,108590.0,108580.0,0.01]
[1750113377820,6.30955741,108590.0,108580.0,0.01]
[1750113378004,6.52063741,108590.0,108580.0,0.01]
[1750113378458,5.77329249,108590.0,108580.0,0.01]
[1750113378663,5.95669349,108590.0,108580.0,0.025]
[1750113379107,5.95669349,108590.0,108580.0,0.0416]
[1750113379328,5.74561349,108590.0,108580.0,0.0416]
[1750113379533,6.18026491,108590.0,108580.0,0.025]
[1750113379747,6.27641413,108590.0,108580.0,0.025]
[1750113379969,6.27341413,108590.0,108580.0,0.025]
[1750113380194,6.27325413,108590.0,108580.0,0.01]
[1750113380473,6.27525413,108590.0,108580.0,0.011]
[1750113382828,6.29095413,108590.0,108580.0,0.011]
[1750113383055,6.30685413,108590.0,108580.0,0.011]
[1750113383985,6.27481413,108590.0,108580.0,0.011]
[1750113385178,5.83776271,108590.0,108580.0,0.011]
[1750113385421,6.27465413,108590.0,108580.0,0.011]
[1750113385845,6.30615413,108590.0,108580.0,0.011]
[1750113386910,6.06318271,108590.0,108580.0,0.011]
[1750113387127,6.28975413,108590.0,108580.0,0.011]
[1750113387527,5.88440271,108590.0,108580.0,0.0271]
[1750113387760,6.04780271,108590.0,108580.0,0.0271]
[1750113388219,5.83776271,108590.0,108580.0,0.0271]
[1750113388450,0.87967032,108590.0,108580.0,0.0434]
[1750113388655,6.22510741,108590.0,108580.0,0.011]
[1750113389524,6.01510741,108590.0,108580.0,0.011]
[1750113389707,6.5753108,108590.0,108580.0,0.011]
[1750113389949,6.38529712,108590.0,108580.0,0.011]
[1750113390160,6.14781437,108590.0,108580.0,0.011]
[1750113390388,0.58787449,108570.0,108560.0,0.002]
[1750113390622,6.50397809,108570.0,108560.0,0.002]
[1750113391039,6.50766909,108570.0,108560.0,0.002]
[1750113391247,6.47096435,108570.0,108560.0,0.002]
[1750113391464,6.30764435,108570.0,108560.0,0.002]
[1750113391679,6.30764435,108570.0,108560.0,0.00204734]
[1750113391680,6.02145295,108570.0,108560.0,0.00204734]
[1750113391933,6.02984437,108570.0,108560.0,0.00304734]
[1750113392156,6.23968437,108570.0,108560.0,0.00304734]
[1750113392377,6.46425579,108570.0,108560.0,0.00304734]
[1750113392606,6.49795579,108570.0,108560.0,0.00304734]
[1750113396055,6.52548435,108570.0,108560.0,0.00304734]
[1750113397733,6.49795579,108570.0,108560.0,0.00304734]
[1750113397942,6.49794509,108570.0,108560.0,0.00304734]
[1750113398674,0.63951183,108550.0,108540.0,0.00106]
[1750113398876,5.05,108510.0,108480.0,0.0272619]
[1750113399092,5.05,108510.0,108480.0,0.0166]
[1750113399093,5.25278305,108490.0,108480.0,0.0166]
[1750113399312,5.47935447,108490.0,108480.0,0.0034073]
[1750113399562,5.47935447,108490.0,108460.0,0.035]
[1750113399563,0.20282044,108470.0,108460.0,0.035]
[1750113399811,0.20282044,108470.0,108460.0,0.18082737]
[1750113400027,0.20282044,108470.0,108460.0,0.18423699]
[1750113400250,0.20282044,108470.0,108460.0,0.02744767]
[1750113400475,0.20286751,108470.0,108460.0,0.02744767]
[1750113400694,0.42943893,108470.0,108460.0,0.02744767]
[1750113400909,0.20286751,108470.0,108460.0,0.002]
[1750113401342,0.20286751,108470.0,108460.0,0.03467131]
[1750113401561,0.20486751,108470.0,108460.0,0.03467131]
[1750113401774,0.20286751,108470.0,108460.0,0.03467131]
[1750113401993,0.20386751,108470.0,108460.0,0.03467131]
[1750113402224,0.20586751,108470.0,108460.0,0.03467131]
[1750113402692,0.20486751,108470.0,108460.0,0.03467131]
[1750113402916,0.00204707,108470.0,108460.0,0.22829098]
[1750113403143,0.03892189,108470.0,108460.0,0.28894948]
[1750113403338,0.01226552,108470.0,108460.0,0.28894948]
[1750113403611,0.01226552,108470.0,108460.0,0.57317499]
[1750113403833,0.00304707,108470.0,108460.0,0.28894948]
[1750113404062,0.00304707,108470.0,108460.0,0.57317499]
[1750113404317,0.00304707,108470.0,108460.0,0.66941675]
[1750113404556,0.00304707,108470.0,108460.0,0.38519124]
[1750113404795,0.00304707,108470.0,108460.0,0.66941675]
[1750113405032,4.707e-05,108470.0,108460.0,0.38519124]
[1750113405290,4.707e-05,108470.0,108460.0,0.66941675]
[1750113405503,0.00304707,108470.0,108460.0,0.86941675]
[1750113405951,0.00204707,108470.0,108460.0,1.07985675]
[1750113406162,0.00304707,108470.0,108460.0,0.87041675]
[1750113406365,0.00304707,108470.0,108460.0,1.07853675]
[1750113406575,0.00304707,108470.0,108460.0,0.79431124]
[1750113406780,0.00204707,108470.0,108460.0,1.07853675]
[1750113406984,4.707e-05,108470.0,108460.0,1.07853675]
[1750113407200,4.707e-05,108470.0,108460.0,0.79431124]
[1750113407432,0.00204707,108470.0,108460.0,1.07853675]
[1750113407682,4.707e-05,108470.0,108460.0,1.07853675]
[1750113408191,0.00304707,108470.0,108460.0,0.79531124]
[1750113408440,0.03070294,108470.0,108460.0,0.34397194]
[1750113408674,0.01226544,108470.0,108460.0,0.5876308]
[1750113408915,0.00304707,108470.0,108460.0,0.5876308]
[1750113409320,0.00204707,108470.0,108460.0,0.5866308]
[1750113409750,0.00304707,108470.0,108460.0,0.6037308]
[1750113410166,0.00104707,108470.0,108460.0,0.6037308]
[1750113410375,0.00304707,108470.0,108460.0,0.6037308]
[1750113410589,0.00304707,108470.0,108460.0,0.6031608]
[1750113410801,0.00104707,108470.0,108460.0,0.6031608]
[1750113411057,0.00204707,108470.0,108460.0,0.6021608]
[1750113411502,0.00304707,108470.0,108460.0,0.6021608]
[1750113412579,0.00304707,108470.0,108460.0,0.5860608]
[1750113413235,0.01226544,108470.0,108460.0,0.5699608]
[1750113413468,0.00304707,108470.0,108460.0,0.5699608]
[1750113413900,0.00304707,108470.0,108460.0,0.5858608]
[1750113414106,0.00304707,108470.0,108460.0,0.87008631]
[1750113415783,0.00304707,108470.0,108460.0,0.88598631]
[1750113416382,0.00304707,108470.0,108460.0,0.6017608]
[1750113416618,0.00304707,108470.0,108460.0,0.3926408]
[1750113416825,0.00304707,108470.0,108460.0,0.5944408]
[1750113417272,0.00304707,108470.0,108460.0,0.3876408]
[1750113417494,0.02148406,108470.0,108460.0,0.46595904]
[1750113417709,0.01226544,108470.0,108460.0,0.46599904]
[1750113417918,0.04332822,108470.0,108460.0,0.46599904]
[1750113418128,0.04332822,108470.0,108460.0,0.25959904]
[1750113418335,0.0525471,108470.0,108460.0,0.25959904]
[1750113418609,0.04332822,108470.0,108460.0,0.46575904]
[1750113419034,0.0341096,108470.0,108460.0,0.46575904]
[1750113419238,0.05254701,108470.0,108460.0,0.46575904]
[1750113419455,0.05254693,108470.0,108460.0,0.25959904]
[1750113419661,0.24614934,108470.0,108460.0,0.43778079]
[1750113419865,0.23693072,108470.0,108460.0,0.22272098]
[1750113420079,0.23693072,108470.0,108460.0,0.42856098]
[1750113420301,0.23693072,108470.0,108460.0,0.02910131]
[1750113420302,0.68126196,108470.0,108460.0,0.02910131]
[1750113420717,0.65386243,108470.0,108460.0,0.02910131]
[1750113420940,0.36963692,108470.0,108460.0,0.02910131]
[1750113421167,0.65386243,108470.0,108460.0,0.02910131]
[1750113421594,0.8609358,108470.0,108460.0,0.02910131]
[1750113421809,1.14516131,108470.0,108460.0,0.02910131]
[1750113422233,1.10862861,108470.0,108460.0,0.02910131]
[1750113423938,0.8244031,108470.0,108460.0,0.02910131]
[1750113424148,1.11785022,108470.0,108460.0,0.02910131]
[1750113424357,1.1175457,108470.0,108460.0,0.02910131]
[1750113424576,0.83332019,108470.0,108460.0,0.02910131]
[1750113424786,1.13208468,108470.0,108460.0,0.02910131]
[1750113425021,6.20044944,108470.0,108460.0,0.02910131]
[1750113425451,0.212078,108450.0,108440.0,0.20487664]
[1750113425660,0.2978308,108450.0,108440.0,0.20487664]
[1750113425869,0.27939024,108450.0,108440.0,0.18643378]
[1750113426082,0.27939024,108450.0,108440.0,0.20487689]
[1750113426357,0.25200082,108450.0,108440.0,0.21409815]
[1750113426573,0.11343271,108450.0,108440.0,0.22331924]
[1750113426789,0.11443271,108450.0,108440.0,0.22331924]
[1750113427001,0.08913424,108450.0,108440.0,0.22331924]
[1750113427222,0.10746618,108450.0,108440.0,0.22331924]
[1750113427435,0.11645559,108450.0,108440.0,0.22331924]
[1750113427651,0.09801461,108450.0,108440.0,0.22331924]
[1750113427857,0.11645568,108450.0,108440.0,0.22331924]
[1750113428075,0.13458287,108450.0,108440.0,0.22331924]
[1750113428287,0.09806365,108450.0,108440.0,0.22331924]
[1750113428900,0.11650489,108450.0,108440.0,0.22331924]
[1750113429363,0.14837736,108450.0,108440.0,0.22331924]
[1750113429571,0.079623,108450.0,108440.0,0.22331924]
[1750113429788,0.11624655,108450.0,108440.0,0.22331924]
[1750113430001,0.11624638,108450.0,108440.0,0.22331924]
[1750113430474,0.13468669,108450.0,108440.0,0.22331924]
[1750113430685,0.09806331,108450.0,108440.0,0.22331924]
[1750113431114,0.13915501,108450.0,108440.0,0.22331924]
[1750113431357,0.12546243,108450.0,108440.0,0.22331924]
[1750113431573,0.11624236,108450.0,108440.0,0.22331924]
[1750113431995,0.12546243,108450.0,108440.0,0.22331924]
[1750113432202,0.11624236,108450.0,108440.0,0.22331924]
[1750113432861,0.06146352,108450.0,108440.0,0.22331924]
[1750113433045,0.06146352,108450.0,108440.0,0.23921924]
[1750113433296,0.08892455,108450.0,108440.0,0.23921924]
[1750113435497,0.08892455,108450.0,108440.0,0.22331924]
[1750113435726,0.05230519,108450.0,108440.0,0.22331924]
[1750113435941,0.05230519,108450.0,108440.0,0.23871924]
[1750113436388,0.06944135,108450.0,108440.0,0.23871924]
[1750113436611,0.11528078,108450.0,108440.0,0.22331924]
[1750113436823,0.10606071,108450.0,108440.0,0.22331924]
[1750113437038,0.08892455,108450.0,108440.0,0.22331924]
[1750113439268,0.08892455,108450.0,108440.0,0.45070335]
[1750113439710,0.05230519,108450.0,108440.0,0.22331924]
[1750113439925,0.05230519,108450.0,108440.0,0.45070335]
[1750113440133,0.06152534,108450.0,108440.0,0.45070335]
[1750113440354,0.05230519,108450.0,108440.0,0.65194335]
[1750113440575,0.05230519,108450.0,108440.0,0.44045924]
[1750113440790,0.05230519,108450.0,108440.0,0.66784335]
[1750113441436,0.02456751,108450.0,108440.0,0.61684335]
[1750113442111,0.02456751,108450.0,108440.0,0.63244335]
[1750113443211,0.003,108450.0,108440.0,1.15546922]
[1750113443638,0.003,108450.0,108440.0,0.728399]
[1750113443848,0.003,108450.0,108440.0,0.95578311]
[1750113446036,0.003,108450.0,108440.0,0.512159]
[1750113446251,0.003,108450.0,108440.0,0.467801]
[1750113446461,0.003,108450.0,108440.0,0.69518511]
[1750113446671,0.01222015,108450.0,108440.0,0.69518511]
[1750113446882,0.02144056,108450.0,108440.0,0.17231949]
[1750113447110,0.03066114,108450.0,108440.0,0.37155949]
[1750113447321,0.02144056,108450.0,108440.0,0.5989436]
[1750113447969,0.02144047,108450.0,108440.0,0.5989436]
[1750113448395,0.03066088,108450.0,108440.0,0.5989436]
[1750113448608,0.03988146,108450.0,108440.0,0.37155949]
[1750113448813,0.03066088,108450.0,108440.0,0.5989436]
[1750113449023,0.02144047,108450.0,108440.0,0.37155949]
[1750113449514,0.05366702,108450.0,108440.0,0.37155949]
[1750113449725,0.03066096,108450.0,108440.0,0.17231949]
[1750113449948,0.03988162,108450.0,108440.0,0.37095949]
[1750113450156,0.03066096,108450.0,108440.0,0.17231949]
[1750113450371,0.03988162,108450.0,108440.0,0.17231949]
[1750113450595,0.07198162,108450.0,108440.0,0.37071949]
[1750113451018,0.26561915,108450.0,108440.0,0.37071949]
[1750113451235,0.08120237,108450.0,108440.0,0.37071949]
[1750113451459,0.04432066,108450.0,108440.0,0.21209806]
[1750113451677,0.25639951,108450.0,108440.0,0.20287689]
[1750113451917,0.24717902,108450.0,108440.0,0.20287689]
[1750113452142,0.22873761,108450.0,108430.0,0.41030856]
[1750113452371,0.01844269,108440.0,108430.0,0.42093127]
[1750113452601,0.01844269,108440.0,108430.0,0.18445079]
[1750113452602,0.2448984,108440.0,108430.0,0.18445079]
[1750113452821,0.2448984,108440.0,108430.0,0.40237526]
[1750113453046,0.2448984,108440.0,108430.0,0.4207799]
[1750113453277,0.2448984,108440.0,108430.0,0.4206199]
[1750113453502,0.06046462,108440.0,108430.0,0.42984192]
[1750113453709,0.23767672,108440.0,108430.0,0.23056192]
[1750113453930,0.23767672,108440.0,108430.0,0.21211779]
[1750113454579,0.22845529,108440.0,108430.0,0.18445079]
[1750113455018,0.22845529,108440.0,108430.0,0.20289543]
[1750113455232,0.23867655,108440.0,108430.0,0.20289543]
[1750113455668,0.28098588,108440.0,108430.0,0.20289543]
[1750113456129,0.23867655,108440.0,108430.0,0.20289543]
[1750113456350,0.23867655,108440.0,108430.0,0.19367324]
[1750113456801,0.23867655,108440.0,108430.0,0.2028956]
[1750113457091,0.23867655,108440.0,108430.0,0.21211779]
[1750113457529,0.22945529,108440.0,108430.0,0.2028956]
[1750113457730,0.22945529,108440.0,108430.0,0.22133999]
[1750113458172,0.26135863,108440.0,108430.0,0.22133999]
[1750113458396,0.00922202,108430.0,108420.0,0.20484754]
[1750113458602,0.00922202,108430.0,108420.0,0.3010893]
[1750113458809,0.00922185,108430.0,108420.0,0.3010893]
[1750113459228,0.01844362,108430.0,108420.0,0.3010893]
[1750113459438,0.26757989,108440.0,108430.0,0.21211737]
[1750113459682,0.27680149,108440.0,108430.0,0.21211737]
[1750113460092,0.09236771,108440.0,108430.0,0.21211737]
[1750113460319,0.18441678,108450.0,108440.0,0.21209781]
[1750113460320,0.05024124,108450.0,108440.0,0.21209781]
[1750113460543,0.25309909,108450.0,108440.0,0.21209798]
[1750113461709,0.24387885,108450.0,108440.0,0.21209798]
[1750113462156,0.24487885,108450.0,108440.0,0.21209798]
[1750113462820,0.23565802,108450.0,108440.0,0.22131915]
[1750113463046,0.28832815,108450.0,108440.0,0.21209798]
[1750113463544,0.29032815,108450.0,108440.0,0.21209798]
[1750113464013,0.05324124,108450.0,108440.0,0.21209798]
[1750113464262,0.06246207,108450.0,108440.0,0.22131907]
[1750113464531,0.24687885,108450.0,108440.0,0.22131907]
[1750113464997,0.24687885,108450.0,108440.0,0.22131915]
[1750113465471,0.24687885,108450.0,108440.0,0.20287672]
[1750113465696,0.34302807,108450.0,108440.0,0.20287672]
[1750113465919,0.34302807,108450.0,108440.0,0.20287689]
[1750113466158,0.04406394,108440.0,108430.0,0.18445079]
[1750113466384,0.06848503,108440.0,108430.0,0.20289492]
[1750113466621,0.26214041,108440.0,108430.0,0.20289543]
[1750113466840,0.2973461,108440.0,108430.0,0.21211745]
[1750113467305,0.08524753,108440.0,108430.0,0.22133939]
[1750113467534,0.06126394,108440.0,108430.0,0.22133939]
[1750113467758,0.06126386,108440.0,108430.0,0.22133939]
[1750113467983,0.06226386,108440.0,108430.0,0.22133939]
[1750113468208,0.06226377,108440.0,108430.0,0.22133939]
[1750113468465,0.0714852,108440.0,108430.0,0.22133939]
[1750113468703,0.08070671,108440.0,108430.0,0.22133939]
[1750113468933,0.09839104,108440.0,108430.0,0.22133939]
[1750113469163,0.0891697,108440.0,108430.0,0.22133939]
[1750113469619,0.05304243,108440.0,108430.0,0.22133939]
[1750113470140,0.06226386,108440.0,108430.0,0.22133939]
[1750113470356,0.06226394,108440.0,108430.0,0.22133939]
[1750113470587,0.06226386,108440.0,108430.0,0.22133939]
[1750113471035,0.47417072,108440.0,108430.0,0.19367324]
[1750113471275,0.0503443,108430.0,108420.0,0.1960961]
[1750113471500,0.0319,108430.0,108420.0,0.2237649]
[1750113471727,0.04412151,108440.0,108430.0,0.21211737]
[1750113471972,0.18448482,108410.0,108400.0,0.1711]
[1750113472247,0.20300761,108370.0,108360.0,0.002]
[1750113472497,5.08692624,108320.0,108300.0,0.23079667]
[1750113472716,5.08692624,108320.0,108300.0,0.027727]
[1750113472717,0.22158463,108310.0,108300.0,0.027727]
[1750113472942,0.20313847,108300.0,108290.0,0.00712876]
[1750113473173,0.22162581,108290.0,108280.0,0.03360396]
[1750113474336,0.20315792,108290.0,108280.0,0.12595636]
[1750113474561,0.20315792,108290.0,108280.0,0.0297146]
[1750113474562,0.23275356,108290.0,108280.0,0.0297146]
[1750113474810,0.20315775,108290.0,108280.0,0.0297146]
[1750113475036,0.20317633,108280.0,108270.0,0.00015912]
[1750113475267,0.20317633,108280.0,108270.0,0.00336698]
[1750113475494,0.21241164,108280.0,108270.0,0.00336698]
[1750113475714,0.21241199,108280.0,108270.0,0.00336698]
[1750113475941,0.00923463,108280.0,108270.0,0.00336698]
[1750113476204,0.06233922,108290.0,108270.0,0.01260306]
[1750113476464,0.0531051,108290.0,108270.0,0.21579551]
[1750113476696,0.01123454,108280.0,108270.0,0.04526786]
[1750113476934,0.002,108280.0,108270.0,0.21579816]
[1750113477154,0.002,108280.0,108270.0,0.22503381]
[1750113477385,0.016,108290.0,108280.0,0.19394154]
[1750113477612,0.001,108280.0,108270.0,0.20335337]
[1750113477834,0.001,108280.0,108270.0,0.21258911]
[1750113478058,0.001,108280.0,108270.0,0.22828911]
[1750113478286,0.001,108280.0,108270.0,0.56828911]
[1750113478510,0.0221418,108300.0,108290.0,0.22162599]
[1750113478803,0.0221418,108300.0,108290.0,0.31786775]
[1750113478992,0.00046998,108300.0,108290.0,0.31786775]
[1750113479214,0.0221231,108300.0,108290.0,0.32710178]
[1750113479910,0.00046998,108300.0,108290.0,0.61215036]
[1750113480137,0.00046998,108300.0,108290.0,0.62715036]
[1750113480387,0.00046998,108300.0,108290.0,0.96715036]
[1750113480608,0.00146998,108300.0,108290.0,0.70310178]
[1750113480829,0.00146998,108300.0,108290.0,0.71764263]
[1750113481124,0.00146998,108300.0,108290.0,1.20269121]
[1750113481848,0.10725101,108340.0,108330.0,0.00923096]
[1750113481850,0.09802081,108340.0,108330.0,0.20308273]
[1750113482122,0.08601793,108340.0,108330.0,0.09624176]
[1750113482392,0.08601784,108340.0,108330.0,0.2900937]
[1750113482697,0.11340743,108340.0,108330.0,0.30855486]
[1750113482883,0.04909953,108340.0,108330.0,0.30855486]
[1750113483112,0.04909953,108340.0,108330.0,0.308697]
[1750113483345,0.0246385,108340.0,108330.0,0.30593876]
[1750113483576,0.0216385,108340.0,108330.0,0.30493876]
[1750113484034,0.0216385,108340.0,108330.0,0.32093876]
[1750113484290,0.0216385,108340.0,108330.0,0.21245532]
[1750113484519,0.0216385,108340.0,108330.0,0.5495709]
[1750113484963,0.0226385,108340.0,108330.0,0.5505709]
[1750113485187,0.0236385,108340.0,108330.0,0.5525709]
[1750113485449,0.05109953,108340.0,108330.0,0.5525709]
[1750113485681,0.0236385,108340.0,108330.0,0.5525709]
[1750113485913,0.05109953,108340.0,108330.0,0.21545532]
[1750113486146,0.05109953,108340.0,108330.0,0.51101532]
[1750113486624,0.05109953,108340.0,108330.0,0.21545532]
[1750113488052,0.12128858,108340.0,108330.0,0.1877632]